{"text_format":"3","workbook":"xlsx","n_sheets":1,"sheets":["Sheet1"],"not_rendered":{"defined_names":2},"read":"whole","date_system":"1900"}

{"sheet":"Sheet1","index":0,"n_rows":55,"n_cols":21,"rows_kept":55,"merged":[[0,0,0,20],[1,0,1,6],[1,12,1,20],[2,0,3,0],[2,1,3,1],[2,2,3,2],[2,3,3,3],[2,4,3,4],[2,5,3,5],[2,6,3,6],[2,7,3,7],[2,8,3,8],[2,9,3,9],[2,10,3,10],[2,11,2,15],[2,16,3,16],[2,17,3,17],[2,18,3,18],[2,19,3,19],[2,20,3,20],[8,0,8,5],[16,0,16,5],[21,0,21,5],[27,0,27,5],[35,0,35,5],[41,0,41,5],[43,0,43,5],[48,0,48,5],[52,0,52,5],[53,0,53,5],[54,0,54,20]]}
["鄯善县2023年县级巩固拓展脱贫攻坚成果和乡村振兴项目库入库项目公示表（第二批）"]
["填报单位（盖章）："]
["序号","项目库编号","项目名称","项目类别","项目子类型","建设性质","实施地点","主要建设内容","建设单位","建设规模","资金规模   （万元）","资金来源（万元）",{"$nulls":4},"责任单位","责任人","绩效目标","入库时间","审批文号"]
[{"$nulls":11},"中央衔接资金","自治区衔接资金","其他涉农整合资金","地方政府债券资金","其他资金"]
[1,"SSX2023060","吐峪沟乡吐峪沟村旅游配套设施建设项目","乡村建设行动","人居环境整治--农村卫生厕所改造","新建","吐峪沟村","新建水冲式卫生厕所2座，面积100平方米/座，3000元/平方米，共计60万元；40立方米化粪池2个，27.3万元/个，共计54.6万元，新建停车场4000平方米，87.5元/平方米，共计35万元（换填土方，砂石砾铺设）。合计149.6万元。（包含项目前期费用）","座/个/平方米","2/2/4000",149.6,149.6,0,0,0,0,"吐峪沟乡人民政府","陈鑫","项目建成后，将改善吐峪沟村人居环境，提升该村旅游服务水平，增强游客接待能力，有效缓解公共卫生厕所不足，游客如厕难的问题，增强居民群众参与旅游产业发展的信心和动力，停车场建成后，不仅为游客和群众的停车问题切实得到改善，切实让群众感受到身边实实在在的便利，也搭建了密切党群关系的“连心桥”。"]
[2,"SSX2023061","吐峪沟乡大型工程机械采购项目","产业发展","产业服务支撑项目-农业社会化服务","新建","泽日甫村、幸福村","购买50装载机2辆，其中:泽日甫村1辆，幸福村1辆，35万元/辆，合计70万元。","辆",2,70,70,0,0,0,0,"吐峪沟乡人民政府","陈鑫","该项目的建成，可以有效处理村民生活垃圾，改善整体村容村貌，增强群众自信心，改善群众生活质量。"]
[3,"SSX2023062","吐峪沟乡公共照明设施建设项目","乡村建设行动","农村公共服务-公共照明设施","新建","吐峪沟村、洋海夏村、潘家坎儿孜村","吐峪沟村安装太阳能路灯100盏，高6米60盏，3000元/盏，共计18万元；高5米40盏，2800元/盏，共计11.2万元；更新维修旧路灯300盏（其中：洋海夏村130盏、潘家坎儿孜村170盏），1600元/盏，共计48万元，合计77.2万元。（包含项目前期费用）","盏",400,77.2,77.2,0,0,0,0,"吐峪沟乡人民政府","陈鑫","该项目的实施，改善夜间出行环境，增加脱贫户对生产生活的信心。可带动周边脱贫户从事农业的信心，激发脱贫户内生动力，实现增收。"]
[4,"SSX2023063","吐峪沟乡克尔火焰山村防渗渠建设项目","产业发展","配套设施项目-小型农田水利设施建设","新建","克尔火焰山村","新建防渗渠4.3公里，流量为0.3m³/s，30万元/公里，合计129万元。（包含项目前期费用）","公里",4.3,129,129,0,0,0,0,"鄯善县吐峪沟乡人民政府","陈鑫","该项目的实施，将改变火焰山村无法使用大河水的历史，有效改善该村生态环境，大幅度降低自然灾害对农作物的影响，减低农业生产成本，促进葡萄产业发展。"]
["吐峪沟乡入库项目合计（4个）",{"$nulls":9},{"$f":"SUM(K5:K8)","v":425.8},{"$f":"SUM(L5:L8)","v":425.8}]
[5,"SSX2023064","鲁克沁镇公共照明设备更换项目","乡村建设行动","农村公共服务--公共照明设施","新建","木卡姆村、阿曼夏村、其那儿巴格村、英夏买里村、阔纳夏村、迪汗苏村、吐曼格博依村","更换太阳能路灯1018盏（更换太阳能板、灯头、电池），其中：木卡姆村150盏，阿曼夏村262盏、其那尔巴格村121盏、英夏买里村126盏、阔纳夏村89盏、迪汗苏村142盏、吐曼格博依村128盏，0.16万元/盏，共计投资162.88万元。","盏",1018,162.88,162.88,{"$nulls":4},"鲁克沁镇人民政府","李金山","项目实施能够有效为群众出行提供便利，为群众夜间出行提供安全保障。"]
[6,"SSX2023065","鲁克沁镇赛尔克甫村农副产品仓储建设项目","产业发展","加工流通项目--农产品仓储保鲜冷链基础设施建设","新建","赛尔克甫村","新建仓储库房4间（每间60平方米），240平方米，2100元/平方米，小计50.4万元；配套凉棚1200平方米，260元/平方米，小计31.2万元；共计投资81.6万元。（含项目前期费）","平方米","240 、   \n1200",81.6,81.6,{"$nulls":4},"鲁克沁镇人民政府","李金山","通过项目实施后，可提高仓储储存功能，提高整体经济资源整合。方便群众葡萄干存储，解决葡萄干堆放不便问题。"]
[7,"SSX2023066","鲁克沁镇大型工程机械采购项目","产业发展","产业服务支撑项目--农业社会化服务","新建","赛尔克甫村","购置50大铲车1辆，35万元/辆，合计35万元。","辆",1,35,35,{"$nulls":4},"鲁克沁镇人民政府","李金山","通过项目实施，用于我镇村集体壮大经济收入低的村，同时也可增加就业岗位，提高就业率，促使群众增加收入。"]
[8,"SSX2023067","鲁克沁镇迪汗苏养殖小区停车场建设项目","乡村建设行动","农村基础设施（含产业配套基础设施）--其他","新建","迪汗苏村","在迪汗苏养殖小区外，新建停车场4000平方米，厚度20CM，160元/平方米，共计投资64万元。（含项目前期费）","平方米",4000,64,64,{"$nulls":4},"鲁克沁镇人民政府","李金山","项目的实施，将极大改变山南四乡镇农牧民群众牛羊交易停车不便的问题，为农牧民及收购商保障提供方便的停车场地。受益群众8000余人。"]
[9,"SSX2023068","鲁克沁镇低压管道设施项目","产业发展","配套设施项目--小型农田水利设施建设","新建","其那尔巴格村、阿曼夏村","铺设低压管道12公里，其中：其那尔巴格村铺设低压管道4公里，DN160管径，10万元/公里，投资40万元；\n阿曼夏村铺设低压管道8公里，DN160管径，10万元/公里，投资金额80万元。总得投资120万元（含项目前期费）。","公里",12,120,120,{"$nulls":4},"鲁克沁镇人民政府","李金山","通过管道新建项目的实施，避免灌溉用水的浪费流失，可解决灌溉用水的浪费流失，充分发挥节水的效用，对农民增收和发展经济都能起到积极的作用。\n"]
[10,"SSX2023069","鲁克沁镇自来水改造建设项目","乡村建设行动","农村基础设施\n（含产业配套基础设施）--农村供水保障设施建设","新建","赛尔克甫夏村、赛尔克甫村","铺设给水管材5.5公里，其中：赛尔克甫夏村铺设PE管材，DN110管径供水管道长2.5公里，30万元/公里，小计75万元；赛尔克甫村，铺设主管道PE管材，DN250管径供水管道长3公里（含修复路面），90万元/公里，小计270万元；共计投资金额345万元。（含项目前期费）。","公里",5.5,345,345,{"$nulls":4},"鲁克沁镇人民政府","李金山","通过项目实施，进一步完善赛尔克甫夏村、赛尔克甫村的基础设施，解决供水不足的问题，加快两村经济发展的速度，改善村民的生活水平、增加农民的经济收入，可以完善村庄的自来水管网的普及加强管道，接入142户解决停水问题，为群众提供便利。"]
[11,"SSX2023070","鲁克沁镇赛尔克甫夏村沥青道路建设项目","乡村建设行动","农村基础设施（含产业配套基础设施）--农村道路建设（通村路）","新建","赛尔克甫夏村","新建赛尔克甫夏村沥青道路2.5公里，宽5米，55万元/公里，计划投资金额137.5万元（含项目前期费）。","公里",2.5,137.5,137.5,{"$nulls":4},"鲁克沁镇人民政府","李金山","通过项目实施，大力改善当前道路现状，提高农民生产生活条件，解决群众出行困难问题，确保群众出行安全，为群众日常生活提供便利，提高收入。尤其学生上下学更为安全，可以给家长接送学生提供方便。"]
["鲁克沁镇入库项目合计（7个）",{"$nulls":9},{"$f":"SUM(K10:K16)","v":945.98},{"$f":"SUM(L10:L16)","v":945.98}]
[12,"SSX2023071","迪坎镇公共照明建设项目","乡村建设行动","农村公共服务--公共照明设施","新建","坎儿孜库勒村、也扎坎儿孜村、迪坎尔村、塔什塔盘村、玉尔门村、托特坎儿孜村","维修太阳能路灯（更换电池、灯头、太阳能板）385盏（其中坎儿孜库勒村124盏、也扎坎儿孜村6盏、迪坎尔村60盏、塔什塔盘村80盏、玉尔门村94盏、托特坎儿孜村21盏），0.16万元/盏，总投资61.6万元。","盏",385,61.6,61.6,{"$nulls":4},"迪坎镇人民政府","马亮","完善各村公共照明设施，保障群众夜间出行安全，提升村容村貌。"]
[13,"SSX2023072","迪坎镇易地搬迁区公共照明建设项目","乡村建设行动","农村公共服务--公共照明设施","新建","坎儿孜库勒村（易地搬迁区）","采购安装6米太阳能路灯16盏,0.3万元/盏，需4.8万元；维修太阳能路灯（更换电池、灯头、太阳能板）45盏，0.16万元/盏，需7.2万元，总投资12万元。","盏",61,12,12,{"$nulls":4},"迪坎镇人民政府","马亮","为易地搬迁群众夜间出行提供便捷，提高出行的安全性，有效降低事故风险，改善安置区美化亮化。"]
[14,"SSX2023073","迪坎镇节水灌溉建设项目","产业发展","配套设施项目--小型农田水利设施建设","新建","坎儿孜库勒村、也扎坎儿孜村、迪坎尔村、塔什塔盘村、玉尔门村、托特坎儿孜村","迪坎镇铺设节水灌溉设施20公里（其中托特坎儿孜村4公里、也扎坎儿孜村3公里，坎儿孜库勒村5公里、迪坎村3公里、塔什塔盘村3公里、玉尔门村2公里），PVC管材，160Φ，7.8万元/公里，总投资156万元（含前期费）。","公里",20,156,156,{"$nulls":4},"迪坎镇人民政府","马亮","通过农田节水有效改善项目区农田基础设施条件，提升农产品品质，增加群众收入。"]
[15,"SSX2023074","迪坎镇坎儿孜库勒村机电井更新建设项目","产业发展","配套设施项目--小型农田水利设施建设","新建","坎儿孜库勒村","更新坎儿孜库勒村1眼机电井，更换电缆、变压器、水泵，加盖井房15平方米，计27万元（含前期费）。","眼",1,27,27,{"$nulls":4},"迪坎镇人民政府","马亮","改善坎儿孜库勒村农业生产设施条件，提高农业灌溉用水效率。"]
["迪坎镇入库项目合计（4个）",{"$nulls":9},{"$f":"SUM(K18:K21)","v":256.6},{"$f":"SUM(L18:L21)","v":256.6}]
[16,"SSX2023075","达浪坎乡英坎村鲜食葡萄分拣中心项目","产业发展","加工流通项目-产地初加工和精深加工","新建","英坎村","在英坎村2组建设占地6000平方米的鲜食葡萄分拣中心。其中：场地硬化1500平方米，120元/平方米，计18万元；搭建凉棚1500平米，360元/平方米，计54万元；改造水、电，计3.5万元；修建4500平米停车场（厚度20厘米的砂石场地），55元/平方米，计24.75万元；安装100吨地磅，计10万元。计划总投资110.25万元。（包含项目前期费）","平方米",6000,110.25,110.25,{"$nulls":4},"达浪坎乡人民政府","罗玉鹏","切实提高英坎村鲜食葡萄采摘销售质量，打造鲜食葡萄销售示范点，带动全乡鲜食葡萄销售，提高葡萄产业效益，增加农民收入。"]
[17,"SSX2023076","达浪坎乡环卫设施项目","乡村建设行动","人居环境整治-农村垃圾治理","新建","央布拉克村、乔亚村、拜什塔木村、阿扎提村、玉旺坎村、英坎村","购置垃圾桶930个（240升/铁质），0.05万元/个，计46.5万元（其中：央布拉克村170个、乔亚村200个、拜什塔木村150个、阿扎提村130个、玉旺坎村150个、英坎村130个）；英坎村购置6立方米压缩垃圾车1辆、22.5万元/辆,计划总投资69万元。","个、辆","930、1",69,69,{"$nulls":4},"达浪坎乡人民政府","罗玉鹏","切实解决乡村生态环境特别是垃圾分类回收处理、化粪池处理的问题，提高乡村生态环保意识，加强美丽乡村建设。"]
[18,"SSX2023077","达浪坎乡植物病虫害防治设备采购项目","产业发展","产业服务支撑项目-农业社会化服务","新建","央布拉克村、乔亚村、拜什塔木村、阿扎提村、玉旺坎村、英坎村","采购12台电动打药机（其中：央布拉克村，乔亚村，拜什塔木村，阿扎提村，玉旺坎村，英坎村各2台），1.25万元/台，计15万元。","台",12,15,15,{"$nulls":4},"达浪坎乡人民政府","罗玉鹏","有效解决各村林木、葡萄地等病虫害防治及提高农业机械化水平，降低农业生产成本，提高农业效益。"]
[19,"SSX2023078","达浪坎乡大型机械设备采购项目","产业发展","产业服务支撑项目-农业社会化服务","新建","央布拉克村、阿扎提村","阿扎提村、央布拉克村各采购1台30装载机，共2台，23.78万元/台，共投资47.56万元。","台",2,47.56,47.56,{"$nulls":4},"达浪坎乡人民政府","罗玉鹏","通过租赁等形式，有效壮大村集体经济，提高群众收入，提升群众幸福感、获得感。"]
[20,"SSX2023079","达浪坎乡央布拉克村巷道硬化建设项目","乡村建设行动","农村基础设施（含产业配套基础设施）-农村道路建设（通村、组硬化路及护栏）","新建","央布拉克村","央布拉克村新建巷道硬化3.83公里，（其中：修建4米宽路面2.67公里，48万/公里，计128.16万元；修建5米宽路面1.16公里，55万/公里，计63.8万元）项目总投资191.96万元（含项目前期费）。","公里",3.83,191.96,191.96,{"$nulls":4},"达浪坎乡人民政府","罗玉鹏","有效改善群众出行道路环境，提高群众出行安全性，降低农产品运输成本，提高运输效率，达到增收的目的。"]
["达浪坎入库项目合计（5个）",{"$nulls":9},{"$f":"SUM(K23:K27)","v":433.77},{"$f":"SUM(L23:L27)","v":433.77}]
[21,"SSX2023080","连木沁镇大型工程机械采购项目","产业发展","产业服务支撑项目-农业社会化服务","新建","汗都夏村、尤库日买里村、巴扎村","购置50大型装载机3台，单价35万元/台，合计105万元（其中：汗都夏村、尤库日买里村、巴扎村各1台）。","台",3,105,{"$f":"K29+0","v":105},{"$nulls":4},"连木沁镇人民政府","赵晖","该项目实施后，将设备对外租赁，通过招租提升村集体增收渠道提高。同时村集体可减少村集体人居环境整治及小型公益型基础设施建设方面的投入成本。"]
[22,"SSX2023081","连木沁镇人居环境整治设备采购项目","乡村建设行动","人居环境整治-农村垃圾治理","新建","阿克墩村、苏克协尔村、艾斯力汗都村、汗都坎村、布拉克阿勒迪村、汗都夏村、尤库日买里村、曲旺克尔村、库木买里村、连木沁坎村、阿斯塔纳村","采购柴油三轮垃圾清运车12辆，单价2万元/辆，计24万元（其中：汗都夏村2辆、其他10个村各1辆）；购置7立方洒水车4辆，17万元/辆，计68万元（其中：阿克墩村、苏克协尔村、库木买里村、汗都夏村各1辆）；购置9.5立方洒水车1辆（其中：尤库日买里村1辆），单价20万元/辆，计20万元；合计112万元。","辆",17,112,112,{"$nulls":4},"连木沁镇人民政府","赵晖","该项目实施后，将全面改善连木沁镇12个村人居环境和村容村貌，提高村级垃圾转运能力和提升应对突发火灾等公共安全事件能力。"]
[23,"SSX2023082","连木沁镇公共照明建设项目","乡村建设行动","农村公共服务-公共照明设施","新建","布拉克阿勒迪村、阿斯塔纳村","五闸养殖小区安装8米高路灯200盏，造价0.35万元/盏，计70万元；阿斯塔纳村安装6米高太阳能路灯80盏，单价0.3万元/盏，计24万元；合计94万元。","盏",280,94,94,{"$nulls":4},"连木沁镇人民政府","赵晖","通过该项目实施，大力改善布拉克阿勒迪村、阿斯塔纳村当地群众97户夜间出行，日常生产、生活提供便利。同时该项目的实施惠民生、暖民心，赢得群众支持和拥护。"]
[24,"SSX2023083","连木沁镇公共照明维修项目","乡村建设行动","农村公共服务-公共照明设施","新建","阿克墩村、苏克协尔村、艾斯里汉都村、汗都坎村、布拉克阿勒迪村、汗都夏村、尤库日买里村、库木买里村、巴扎村、连木沁坎村","维修节能路灯1000盏，更换电池，太阳能板，灯具（其中：阿克墩村120、苏克协尔村150、艾斯里汗都村100、汗都坎村100、布拉克阿勒迪村80、汗都夏村90、尤库日买里村150、库木买里村80、巴扎村50、连木沁坎村80），单价1600元/盏，计160万元；","盏",1000,160,160,{"$nulls":4},"连木沁镇人民政府","赵晖","通过项目实施，将有效保障连木沁镇各族群众夜间出行，降低交通事故发生率，切实保障各族群众人身安全和生命问题。"]
[25,"SSX2023084","连木沁镇农业抗旱引水设施建设项目","产业发展","配套设施项目-小型农田水利设施建设","新建","巴扎村、艾斯力汗都村、苏克协尔村","建设巴扎村引水管道1400米，单价110元/米，计15.4万元；购置水泵、变压器、电缆线、蓄水池等设备7.4万元，计22.8万元；新建艾斯力汗都村引水渠道1公里，设计流速0.2m³/s，造价29万元/公里，计29万元；铺设苏克协尔村低压管道1.6公里，单价6.5万元/公里，计10.4万元。总计62.2万元。（含前期费用）","米、公里","1400、1、1.6",62.2,62.2,{"$nulls":4},"连木沁镇人民政府","赵晖","该项目的实施，将大幅降低巴扎村、艾斯力汗都村、苏克协尔村对农作物影响，保障持水资源合理分配，提升农业抗旱用水能力，保障群众农业生产收益。"]
[26,"SSX2023085","连木沁镇阿克墩村防渗渠建设项目","产业发展","配套设施项目-小型农田水利设施建设","新建","阿克墩村","新建防渗渠1.5公里，设计流速1.0m³/s,造价50万元/公里，计75万元；维修防渗渠5.5公里，设计流速1.0m³/s，造价25万元/公里，计137.5万元；总计212.5万元（含前期费用）。","公里",7,212.5,212.5,{"$nulls":4},"连木沁镇人民政府","赵晖","该项目的实施，能够对阿克墩村水资源合理分配，改善3250亩农作物灌溉条件，减少水资源流失，节约农业生产用水。"]
[27,"SSX2023086","连木沁镇连木沁坎村年产5000吨NFC果汁生产设备采购项目","产业发展","加工流通项目-产地出加工和精深加工","新建","连木沁坎村","1、清洗、榨汁、挑拣、破碎系统一套，计117万元。（其中带式榨汁机28万、卧式螺旋离心机22万，蝶式分离机24.5万，其他配套设备42.5万）；\n2、过滤杀菌系统一套，计159万元。（其中汁膜过滤14万，管式预热杀菌冷却机26万，均质机9万，管式杀菌机33万，其他配套设备77万）；\n3、灌装系统一套，计140万，（其中单头无菌大袋灌装机20万，Pet热灌装机组35万，喷淋杀菌冷却机28万，全自动套标机10万，全自动理瓶机12万，其他配套设备35万）；\n4、公共系统一套（其中锅炉20万、吹瓶机32万，其他配套设备41万。），计93万元；\n5、包装系统一套，计30万元；\n6、连接系统一套，计61万（配件、人工工资）总计600万元。","套",6,600,{"$f":"K35+0","v":600},{"$nulls":4},"连木沁镇人民政府","赵晖","一是该项目实施后，不仅为企业基础设施。加快本地农产品龙头企业向深加工发展。二是项目完成后增加葡萄、哈密瓜等农产品销售渠道。三是项目建成后可以将本地农民进行就地就业，提高增收。"]
["连木沁镇合计（7个）",{"$nulls":9},{"$f":"SUM(K29:K35)","v":1345.7},{"$f":"SUM(L29:L35)","v":1345.7}]
[28,"SSX2023087","七克台镇南湖村巷道硬化建设项目","乡村建设行动","农村基础设施--农村道路建设","新建","南湖村","新建巷道硬化2.5公里，宽4米，厚18公分，48万元/公里，合计120万元（含项目前期费）","公里",2.5,120,120,{"$nulls":4},"七克台镇人民政府","张德基","大力改善当前巷道现状，提高农民生产生活条件，解决372户1675农民群众出行困难问题，确保群众出行安全，为群众日常生活提供便利，促进新农村建设。"]
[29,"SSX2023088","七克台镇大型工程机械采购项目","产业发展","产业服务支撑项目--农业社会化服务","新建","南湖村、热阿运","购置50国标装载机2辆，其中南湖村1辆，热阿运村1辆，35万元/辆，投资70万元。","辆",2,70,70,{"$nulls":4},"七克台镇人民政府","张德基","通过对装载机的租赁，不但可以壮大村集体经济，还能有效处理村民生活垃圾，改善整体人居环境，增强群众自信心，改善群众生活质量，此项目的实施可使南湖村372户1675人、热阿运村312户1288人受益。"]
[30,"SSX2023089","七克台镇公共照明设施维修项目","乡村建设行动","农村公共服务--公共照明设施","新建","巴喀村、台孜村、库木坎村、七克台村、南湖村","维修路灯349盏，其中：巴喀村120盏，台孜村102盏，库木坎村65盏，七克台村43盏，南湖村19盏（更换电池、太阳能板和灯具），1600元/盏，共计投资55.84万元。","盏",349,55.84,55.84,{"$nulls":4},"鄯善县七克台镇人民政府","张德基","该项目的实施，能够改善全镇5735户16778人夜间出行环境，增加脱贫户对生产生活的信心，可带动周边脱贫户从事农业的信心，激发脱贫户生产力，实现增收。"]
[31,"SSX2023090","七克台镇库木坎村沥青道路建设项目","乡村建设行动","农村基础设施--农村道路建设","新建","库木坎村","新建库木坎村沥青道路2.73公里，路面宽4米，48万元/公里，合计投资131.04万元。（含项目前期费）","公里",2.73,131.04,131.04,{"$nulls":4},"鄯善县七克台镇人民政府","张德基","项目建成后，将彻底解决108户456人道路出行难的问题，进一步减少交通事故发生，缩短群众至葡萄地的出行时间，人民群众获得感、幸福感大幅度提升。"]
[32,"SSX2023091","七克台镇防渗渠建设项目","产业发展","配套设施项目--小型农田水利设施建设","新建","巴喀村、七克台村","新建巴喀村防渗渠0.9公里（板渠），流量为0.4m³/s，45万元/公里，小计40.5万元；七克台村防渗渠0.35公里（浆砌石），流量为0.4m³/s，50万元/公里，小计17.5万元，共计投资58万元。（含项目前期费）","公里",1.25,58,58,{"$nulls":4},"鄯善县七克台镇人民政府","张德基","项目的实施可有效改善巴喀村145户570人和七克台村395户1660人的生产条件，促进葡萄种植“一降两升”，即葡萄生产的成本降低、效益提升、品质提升，同时可带动本地群众增收。"]
["七克台镇入库项目合计（5个）",{"$nulls":9},{"$f":"SUM(K37:K41)","v":434.88},{"$f":"SUM(L37:L41)","v":434.88}]
[33,"SSX2023092","鄯善镇巴扎村防渗渠建设项目","产业发展","配套设施项目--小型农田水利设施建设","新建","巴扎村","巴扎村葡萄地新建防渗渠4公里，设计流量0.2m³/s，30万元/公里，合计120万元（含项目前期费用）。","公里",4,120,120,{"$nulls":4},"鄯善镇人民政府","王金","项目实施可以大大提升农业灌溉效率，提高葡萄产量和质量，降低成本，增加群众收入。"]
["鄯善镇入库项目合计（1个）",{"$nulls":9},{"$f":"SUM(K43:K43)","v":120},{"$f":"SUM(L43:L43)","v":120}]
[34,"SSX2023093","辟展镇公共照明建设项目","乡村建设行动","农村公共服务--公共照明设施","新建","大东湖村、小东湖村、马场村、柯柯亚村、卡格托尔村、库尔干村、乔克塔木村","安装太阳能路灯400盏，其中6米高太阳能路灯350盏,（大东湖村60盏、小东湖村80盏、马场村60盏，库尔干村50盏，柯柯亚村50盏，卡格托尔村50盏），0.3万元/盏，共计105万元；乔克塔木村安装4米高太阳能路灯50盏，0.25万元/盏，共计12.5万元，合计117.5万元。","盏",400,117.5,117.5,{"$nulls":4},"辟展镇人民政府","方双双","改善群众夜间出行条件，促进公共基础提升，加快经济发展。"]
[35,"SSX2023094","辟展镇卡格托尔村农业灌溉管网建设项目","产业发展","配套设施项目--小型农田水利设施建设","新建","卡格托尔村","卡格托尔村新建低压管道3.36公里，管径为DE160，18万元/公里，合计60.48万元（含前期费用）。","公里",3.36,60.48,60.48,{"$nulls":4},"辟展镇人民政府","方双双","项目建成后，减少输水过程中的渗漏和蒸发损失，使水的利用效率大大提高，提高葡萄产量和质量，有效改善灌溉面积500亩。"]
[36,"SSX2023095","辟展镇大东湖村防渗渠建设项目","产业发展","配套设施项目--小型农田水利设施建设","新建","大东湖村","新建防渗渠2.34公里，设计流量0.1-0.2m³/s，28万元/公里，合计65.52万元（含前期费用）。","公里",2.34,65.52,65.52,{"$nulls":4},"辟展镇人民政府","方双双","降低灌溉过程水损耗，提高水利用率，通过改善农业基础设施，减少农民农业生产成本，改善灌溉面积500亩。"]
[37,"SSX2023096","辟展镇大东湖村养殖小区公共照明建设项目","乡村建设行动","农村公共服务--公共照明设施","新建","大东湖村","大东湖村养殖小区安装6米高太阳能路灯60盏，0.3万元/盏，合计18万元。","盏",60,18,18,{"$nulls":4},"辟展镇人民政府","方双双","有效改善养殖小区群众的出行困难问题，为农民畜牧养殖提供交通便利，提升群众幸福感。"]
["辟展镇入库项目合计（4个）",{"$nulls":9},{"$f":"SUM(K45:K48)","v":261.5},{"$f":"SUM(L45:L48)","v":261.5}]
[38,"SSX2023097","东巴扎乡给排水工程建设项目","乡村建设行动","人居环境整治—农村污水治理","新建","塔乌村","新建给水管网150PE管1.5公里，单价22.8万元/公里，合计34.2万元。新建给水管网50PE管4公里，单价11.33万元/公里，合计45.3万元；排水管道5.5公里，单价31万元/公里，合计170.5万元。管道回填和道路硬化5.5公里，合计60万元，弱电4公里，单价6万元/公里，合计24万元。给排水检修井80座，单价每座0.25万元，合计20万元。总投资354万元（含项目前期费）。","公里",5.5,354,354,{"$nulls":4},"东巴扎乡人民政府","张纲","提升村民自来水水质，确保供水管网水质安全。确保塔乌村环境整治取得明显成效，解决危害群众身体健康、威胁城乡居民生存环境、影响农村可持续发展的突出环境问题。"]
[39,"SSX2023098","东巴扎乡大型工程机械采购项目","产业发展","产业服务支撑项目-农业社会化服务","新建","前街村、后梁村","购置50型装载机2台，其中:前街村1台，后梁村1台，35万元/台，总投资70万元。","台",2,70,70,{"$nulls":4},"东巴扎乡人民政府","张纲","本项目实施，不断壮大发展村集体经济，充分发挥社会主义优越性和巩固基层政权，增强村级党支部凝聚力、号召力和战斗力。"]
[40,"SSX2023099","东巴扎乡防渗渠建设项目","产业发展","配套设施项目-小型农田水利设施建设","新建","前街村、艾孜拉村、塔乌村","新建设计流量为0.1m³/s的防渗渠5.52公里，其中：前街村0.54公里，艾孜拉村4.22公里，塔乌村0.76公里。单价28万元/公里，总投资154.56万元（含项目前期费）。","公里",5.52,154.56,154.56,{"$nulls":4},"东巴扎乡人民政府","张纲","通过改善农业基础设施，改善生产条件，降低成本，提高收入，激发群众发展内生动力，促进种植产业健康发展。"]
["东巴扎乡合计（3个）",{"$nulls":9},{"$f":"SUM(K50:K52)","v":578.56},{"$f":"SUM(L50:L52)","v":578.56}]
["第二批入库项目合计",{"$nulls":9},{"$f":"K9+K17+K22+K28+K36+K42+K44+K49+K53","v":4802.790000000001},{"$f":"L9+L17+L22+L28+L36+L42+L44+L49+L53","v":4802.790000000001}]
["备注：1、本次入库项目40个，投资规模为4802.79万元。其中：产业发展类项目21个，投资规模2369.67万元，产业占比49.34%；乡村建设行动项目19个，投资规模为2433.12万元，占50.66%。"]